bitfinex-derivatives/quotes_SOLF0:USTF0_20250505
["timestamp","ask_amount","ask_price","bid_price","bid_amount"]
[1746460076267,28.12,143.46,143.39,6.9739]
[1746460076468,4.48692255,143.45,143.39,6.9739]
[1746460076670,4.48692255,143.44,143.39,6.9739]
[1746460076871,4.48692255,143.43,143.37,2.1594]
[1746460077175,6.973,143.42,143.37,2.1594]
[1746460077773,6.9726,143.43,143.37,2.1594]
[1746460077977,28.12,143.46,143.37,2.1594]
[1746460078174,4.48646042,143.45,143.37,2.1594]
[1746460078378,6.9729,143.42,143.39,6.9739]
[1746460078571,6.9729,143.42,143.37,2.1594]
[1746460078770,28.12,143.46,143.37,2.1594]
[1746460078971,6.9725,143.43,143.37,2.1594]
[1746460079172,28.12,143.46,143.37,2.1594]
[1746460079373,4.48928124,143.45,143.37,2.1594]
[1746460079575,6.973,143.42,143.39,6.974]
[1746460079776,6.973,143.42,143.37,2.1594]
[1746460080172,6.9724,143.43,143.4,6.9734]
[1746460080369,6.9724,143.43,143.37,2.1594]
[1746460080575,28.12,143.46,143.37,2.1594]
[1746460080773,4.48720203,143.45,143.37,2.1594]
[1746460080979,4.48720203,143.44,143.37,2.1594]
[1746460081175,28.12,143.49,143.37,2.1594]
[1746460081379,4.48868207,143.48,143.37,2.1594]
[1746460081678,4.48868207,143.47,143.37,2.1594]
[1746460081881,6.9707,143.47,143.44,6.9716]
[1746460082278,28.12,143.49,143.42,28.12]
[1746460082477,6.9719,143.44,143.42,35.0926]
[1746460082676,28.12,143.49,143.42,28.12]
[1746460082979,4.47974625,143.48,143.42,28.12]
[1746460083181,4.47974625,143.47,143.37,2.1594]
[1746460083382,4.47974625,143.46,143.4,28.12]
[1746460083583,6.9722,143.44,143.41,6.973]
[1746460083785,28.12,143.49,143.4,28.12]
[1746460083980,6.9726,143.43,143.4,28.12]
[1746460084384,28.12,143.49,143.4,28.12]
[1746460084586,4.47076333,143.48,143.4,28.12]
[1746460084786,4.47076333,143.47,143.4,28.12]
[1746460084987,4.47076333,143.46,143.4,28.12]
[1746460085187,4.47076333,143.45,143.4,28.12]
[1746460085388,4.47076333,143.44,143.41,6.9731]
[1746460085691,28.12,143.49,143.37,2.1594]
[1746460085886,6.9731,143.42,143.39,6.974]
[1746460086086,42.0593,143.49,143.37,2.1594]
[1746460086290,6.974,143.4,143.38,35.0946]
[1746460086493,42.0593,143.49,143.38,28.12]
[1746460086683,4.48012706,143.48,143.38,28.12]
[1746460086884,4.48012706,143.47,143.38,28.12]
[1746460087085,4.48012706,143.46,143.38,28.12]
[1746460087280,4.48012706,143.45,143.38,28.12]
[1746460087489,28.12,143.49,143.38,28.12]
[1746460087688,4.48467265,143.48,143.38,28.12]
[1746460087886,6.9727,143.43,143.38,28.12]
[1746460088092,28.12,143.49,143.38,28.12]
[1746460088292,4.47899385,143.48,143.38,28.12]
[1746460088586,4.47899385,143.47,143.41,6.973]
[1746460088791,4.47899385,143.46,143.41,6.973]
[1746460088991,28.12,143.49,143.41,6.973]
[1746460088992,6.9722,143.44,143.41,6.973]
[1746460089193,28.12,143.49,143.42,6.9727]
[1746460089398,6.972,143.44,143.42,6.9727]
[1746460089587,4.48673647,143.43,143.42,6.9727]
[1746460090998,28.12,143.49,143.43,6.9723]
[1746460091199,4.49048278,143.48,143.42,28.12]
[1746460091500,6.9714,143.45,143.42,28.12]
[1746460091694,4.49048278,143.44,143.42,28.12]
[1746460091896,6.9714,143.45,143.42,28.12]
[1746460092201,6.9723,143.43,143.42,28.12]
[1746460092395,4.49116581,143.43,143.42,28.12]
[1746460092698,4.48324596,143.43,143.42,35.0928]
[1746460094095,4.48324596,143.43,143.42,28.12]
[1746460094399,11.45554596,143.43,143.42,28.12]
[1746460095398,6.9733,143.41,143.4,2.0294]
[1746460095604,4.48324596,143.41,143.4,30.1494]
[1746460095804,28.12,143.49,143.4,30.1494]
[1746460096006,6.9732,143.42,143.4,30.1494]
[1746460096206,28.12,143.49,143.4,37.1232]
[1746460096405,6.9728,143.42,143.4,30.1494]
[1746460096601,28.12,143.49,143.4,30.1494]
[1746460096905,4.5001302,143.48,143.4,37.123]
[1746460097107,4.5001302,143.47,143.4,30.1494]
[1746460097307,4.5001302,143.46,143.4,28.12]
[1746460097607,6.9731,143.42,143.4,28.12]
[1746460097804,4.5001302,143.41,143.39,580.36]
[1746460098007,18.95270839,143.47,143.39,580.36]
[1746460098208,4.49375954,143.46,143.39,580.36]
[1746460098510,4.49375954,143.45,143.39,580.36]
[1746460098706,6.9737,143.41,143.39,580.36]
[1746460099111,6.9737,143.41,143.39,552.24]
[1746460099313,6.9737,143.41,143.39,580.06]
[1746460099512,6.9737,143.41,143.39,552.24]
[1746460099712,6.9737,143.41,143.39,580.06]
[1746460100114,18.95270839,143.47,143.4,6.9735]
[1746460100315,4.49768678,143.46,143.4,6.9735]
[1746460100509,4.49768678,143.45,143.4,27.82]
[1746460100704,4.49768678,143.44,143.4,27.82]
[1746460100909,4.49768678,143.43,143.4,27.82]
[1746460101109,18.95270839,143.47,143.4,27.82]
[1746460101615,18.95270839,143.47,143.39,552.24]
[1746460101818,11.87564643,143.45,143.39,580.06]
[1746460102317,6.9738,143.4,143.39,580.06]
[1746460102517,11.46959217,143.4,143.39,580.06]
[1746460103108,11.46959217,143.4,143.39,27.82]
[1746460103809,11.46959217,143.4,143.36,3.1507]
[1746460104015,4.49579217,143.39,143.37,27.82]
[1746460104212,4.49579217,143.38,143.37,27.82]
[1746460104407,11.47109217,143.38,143.37,27.82]
[1746460105012,11.49223018,143.38,143.37,27.82]
[1746460105520,6.9753,143.37,143.36,28.82]
[1746460106220,6.975,143.38,143.36,28.82]
[1746460106617,11.87564643,143.42,143.36,28.82]
[1746460106818,4.51696001,143.41,143.36,28.82]
[1746460107016,11.87564643,143.42,143.36,28.82]
[1746460107017,4.51696001,143.4,143.36,28.82]
[1746460107216,4.51671521,143.39,143.36,28.82]
[1746460107412,4.51671521,143.38,143.36,28.82]
[1746460107616,11.49201521,143.37,143.36,1.0]
[1746460108618,11.48510482,143.37,143.36,1.0]
[1746460109222,4.50980482,143.37,143.36,1.0]
[1746460109513,6.975,143.38,143.36,28.84]
[1746460109714,6.9752,143.38,143.36,28.84]
[1746460110220,6.9743,143.4,143.36,28.84]
[1746460110417,4.49193188,143.39,143.36,28.84]
[1746460110617,604.55097178,143.47,143.36,28.84]
[1746460110824,6.9728,143.42,143.4,6.9736]
[1746460111024,6.9728,143.42,143.4,34.8136]
[1746460111417,6.9726,143.43,143.4,34.8136]
[1746460111614,4.49245729,143.42,143.4,34.8136]
[1746460111818,6.9726,143.43,143.41,6.9733]
[1746460112118,11.46518992,143.42,143.4,27.84]
[1746460112321,6.9729,143.42,143.4,27.84]
[1746460115224,6.9733,143.41,143.4,27.84]
[1746460115420,27.84,143.47,143.4,27.84]
[1746460115620,4.49077753,143.46,143.4,27.84]
[1746460115825,6.9733,143.41,143.4,27.84]
[1746460116022,27.84,143.47,143.4,27.84]
[1746460116222,4.49072704,143.46,143.4,27.84]
[1746460116427,6.9731,143.42,143.4,34.8138]
[1746460116624,6.9731,143.42,143.4,27.84]
[1746460117523,6.9731,143.42,143.4,34.8136]
[1746460117723,27.84,143.47,143.4,27.84]
[1746460117922,4.49575142,143.46,143.4,27.84]
[1746460118128,6.9713,143.46,143.43,6.972]
[1746460118327,6.9713,143.46,143.44,27.82]
[1746460118527,0.98566,143.5,143.44,27.82]
[1746460119129,0.98566,143.5,143.44,34.7918]
[1746460119321,4.49620582,143.49,143.44,34.7918]
[1746460119523,6.9706,143.47,143.44,34.7918]
[1746460119721,4.49620582,143.46,143.44,34.7918]
[1746460119928,6.9706,143.47,143.44,34.7918]
[1746460120829,0.98566,143.5,143.44,34.7918]
[1746460121831,6.9712,143.46,143.44,27.82]
[1746460122428,6.9712,143.46,143.44,34.7918]
[1746460122628,6.9712,143.46,143.44,27.82]
[1746460123031,6.9706,143.47,143.44,27.82]
[1746460123227,0.98566,143.5,143.44,27.82]
[1746460123436,0.98566,143.5,143.45,2.1403]
[1746460123625,7.95496,143.5,143.45,2.1403]
[1746460124332,4.48886499,143.49,143.45,2.1403]
[1746460124528,0.98566,143.5,143.45,2.1403]
[1746460125533,6.9687,143.51,143.45,2.1403]
[1746460126534,6.969,143.5,143.48,6.9696]
[1746460126732,6.969,143.5,143.49,27.82]
[1746460127134,13.9306,143.58,143.49,27.82]
[1746460127325,4.45623051,143.57,143.49,27.82]
[1746460127527,4.45623051,143.56,143.49,27.82]
[1746460127728,6.9678,143.53,143.49,27.82]
[1746460127926,19.98492104,143.59,143.49,27.82]
[1746460128134,4.4555939,143.58,143.49,27.82]
[1746460128327,6.9671,143.54,143.51,6.9682]
[1746460128522,19.98492104,143.59,143.49,27.82]
[1746460128727,6.9678,143.53,143.5,6.9686]
[1746460128932,6.9678,143.53,143.49,27.82]
[1746460129130,19.98492104,143.59,143.49,27.82]
[1746460129334,6.9679,143.53,143.5,6.9686]
[1746460131134,6.9679,143.53,143.51,6.9684]
[1746460131839,6.9672,143.54,143.51,6.9684]
[1746460133039,6.9672,143.54,143.52,6.9679]
[1746460133538,19.00442104,143.59,143.5,11.0604]
[1746460133738,4.44388202,143.58,143.5,11.0604]
[1746460133933,4.44388048,143.57,143.5,11.0604]
[1746460134335,4.44388048,143.56,143.5,11.0604]
[1746460134535,46.52442104,143.59,143.5,11.0604]
[1746460134836,6.9679,143.53,143.5,11.0604]
[1746460135741,6.9679,143.53,143.51,6.9684]
[1746460136039,6.9673,143.54,143.51,6.9684]
[1746460136237,6.9673,143.54,143.5,4.0917]
[1746460136437,6.9673,143.54,143.51,6.9684]
[1746460136639,6.9673,143.54,143.5,4.0917]
[1746460136945,6.9673,143.54,143.51,6.9684]
[1746460137137,6.9673,143.54,143.5,4.0917]
[1746460137638,6.9673,143.54,143.51,6.9684]
[1746460137837,6.9676,143.53,143.51,6.9684]
[1746460138141,6.9676,143.53,143.5,4.0917]
[1746460139542,6.9676,143.53,143.51,6.9682]
[1746460140340,6.9676,143.53,143.5,11.0604]
[1746460140547,11.85447879,143.57,143.49,27.82]
[1746460141045,11.85447879,143.54,143.49,27.82]
[1746460141641,6.9689,143.5,143.49,27.82]
[1746460142339,6.9689,143.5,143.45,13.2749]
[1746460142340,31.7238,143.55,143.46,27.52]
[1746460142539,18.97655593,143.53,143.46,27.52]
[1746460142740,18.97655593,143.53,143.4,6.2807]
[1746460142937,6.9716,143.45,143.44,27.52]
[1746460143537,18.97655593,143.5,143.42,27.52]
[1746460143935,6.9716,143.45,143.42,34.4926]
[1746460145248,18.97655593,143.5,143.42,27.52]
[1746460145645,18.97655593,143.5,143.41,552.26]
[1746460145850,3.9732,143.49,143.41,552.26]
[1746460146147,3.9732,143.49,143.4,33.8007]
[1746460146342,6.9723,143.44,143.41,6.973]
[1746460146646,3.9732,143.49,143.4,33.8007]
[1746460146846,6.9718,143.45,143.42,6.9728]
[1746460147247,6.9724,143.43,143.4,40.7743]
[1746460147546,6.9724,143.43,143.4,36.5462]
[1746460150037,3.9732,143.49,143.4,29.5726]
[1746460150243,4.46456402,143.48,143.4,29.5726]
[1746460150442,4.46456402,143.47,143.4,29.5726]
[1746460150645,6.9723,143.44,143.4,36.5461]
[1746460150848,3.9732,143.49,143.4,36.5461]
[1746460151142,24.39097178,143.56,143.4,29.5726]
[1746460151349,27.45057245,143.55,143.4,29.5726]
[1746460151542,18.97655593,143.52,143.4,29.5726]
[1746460151748,6.9708,143.47,143.4,29.5726]
[1746460152146,6.9708,143.47,143.43,6.972]
[1746460152341,6.9722,143.44,143.39,1.0]
[1746460152645,27.52,143.47,143.4,6.9735]
[1746460152848,4.47141604,143.46,143.39,1.0]
[1746460153048,27.52,143.48,143.4,2.1307]
[1746460153248,566.0757,143.53,143.41,27.52]
[1746460153453,31.99451347,143.52,143.41,27.52]
[1746460153639,4.47517029,143.51,143.41,27.52]
[1746460153840,4.47517029,143.5,143.45,6.9712]
[1746460154044,6.9701,143.48,143.45,6.9712]
[1746460154246,6.9701,143.48,143.46,6.9709]
[1746460154543,6.9701,143.48,143.41,27.52]
[1746460154743,6.9697,143.49,143.41,27.52]
[1746460154946,27.52,143.52,143.42,18.97655593]
[1746460155145,6.9692,143.5,143.42,18.97655593]
[1746460155450,6.9692,143.5,143.47,6.9701]
[1746460155651,6.9705,143.47,143.45,27.52]
[1746460155951,27.52,143.52,143.45,34.4911]
[1746460156153,4.47618201,143.51,143.45,27.52]
[1746460156354,6.9697,143.49,143.45,27.52]
[1746460156650,27.52,143.52,143.46,6.9709]
[1746460156845,4.48118289,143.51,143.46,6.9709]
[1746460157049,4.48118289,143.5,143.45,27.52]
[1746460157242,27.52,143.52,143.42,27.52]
[1746460157446,4.48069458,143.51,143.42,27.52]
[1746460157647,4.48069458,143.5,143.42,27.52]
[1746460157850,4.48069458,143.49,143.42,27.52]
[1746460158144,32.00069458,143.48,143.42,27.52]
[1746460158348,4.48676124,143.47,143.42,27.52]
[1746460158653,27.42,143.48,143.4,6.2625]
[1746460158855,4.48659635,143.47,143.4,13.2359]
[1746460159045,6.9726,143.43,143.4,6.2625]
[1746460159253,27.42,143.48,143.4,6.2625]
[1746460159451,27.42,143.48,143.42,6.9726]
[1746460159757,6.9712,143.46,143.4,6.2625]
[1746460160263,27.42,143.48,143.4,6.2625]
[1746460160556,6.9716,143.45,143.42,6.9725]
[1746460160751,6.9716,143.45,143.4,6.2625]
[1746460160961,552.14,143.53,143.4,6.2625]
[1746460161149,31.91032267,143.52,143.4,6.2625]
[1746460161349,4.49032267,143.51,143.4,6.2625]
[1746460161556,27.42,143.52,143.43,6.9722]
[1746460161757,27.42,143.52,143.4,6.2625]
[1746460161958,27.42,143.52,143.43,6.9719]
[1746460161959,6.9712,143.46,143.43,6.9719]
[1746460162154,6.9712,143.46,143.4,6.2625]
[1746460162561,27.42,143.52,143.4,6.2625]
[1746460163058,6.9686,143.51,143.42,18.97655593]
[1746460163252,6.9686,143.51,143.43,27.42]
[1746460163456,31.429,143.55,143.43,27.42]
[1746460163663,31.429,143.55,143.47,6.9701]
[1746460163861,31.429,143.55,143.47,27.42]
[1746460164752,6.9699,143.48,143.44,39.27729126]
[1746460164958,31.429,143.55,143.44,39.27729126]
[1746460165260,6.9702,143.48,143.45,6.9714]
[1746460165655,31.429,143.55,143.44,27.42]
[1746460165958,4.46432924,143.54,143.44,27.42]
[1746460166160,4.46432924,143.53,143.44,27.42]
[1746460166356,6.9692,143.5,143.47,6.9701]
[1746460166960,6.9692,143.5,143.48,6.9699]
[1746460167158,6.9692,143.5,143.44,27.42]
[1746460167458,6.9692,143.5,143.47,6.97]
[1746460167862,6.9687,143.51,143.44,27.42]
[1746460168260,31.429,143.55,143.47,6.9699]
[1746460168463,6.9695,143.49,143.44,27.42]
[1746460168655,31.429,143.55,143.44,27.42]
[1746460168855,4.47235944,143.54,143.45,6.971]
[1746460169059,6.9703,143.48,143.45,6.971]
[1746460169269,31.429,143.55,143.44,27.42]
[1746460169562,5.45244639,143.54,143.44,34.3916]
[1746460169763,4.47424639,143.53,143.44,34.3916]
[1746460170061,4.47424639,143.53,143.44,27.42]
[1746460170964,6.9699,143.49,143.44,27.42]
[1746460171365,0.9782,143.54,143.44,27.42]
[1746460171663,0.9782,143.54,143.45,6.971]
[1746460171664,6.9698,143.49,143.45,6.971]
[1746460172166,6.9699,143.48,143.45,6.971]
[1746460172365,0.9782,143.54,143.44,34.3917]
[1746460172565,4.4887453,143.53,143.44,27.42]
[1746460172867,4.4887453,143.52,143.44,27.42]
[1746460173066,31.9087453,143.51,143.41,27.42]
[1746460173260,6.9714,143.45,143.41,27.42]
[1746460173566,27.42,143.51,143.41,27.42]
[1746460173770,4.49167883,143.5,143.41,27.42]
[1746460173963,6.9712,143.46,143.41,27.42]
[1746460174365,6.9706,143.47,143.41,27.42]
[1746460174565,6.9706,143.47,143.43,6.972]
[1746460174763,27.42,143.51,143.43,6.972]
[1746460174965,6.9708,143.47,143.43,6.972]
[1746460175562,6.9708,143.47,143.44,6.9717]
[1746460175767,6.9708,143.47,143.41,27.42]
[1746460175973,6.9701,143.48,143.41,27.42]
[1746460176267,6.9701,143.48,143.45,6.9711]
[1746460177769,6.9697,143.49,143.46,6.9709]
[1746460178569,6.9692,143.5,143.47,6.9702]
[1746460178770,4.49227947,143.49,143.47,6.9702]
[1746460179068,6.9692,143.5,143.47,6.9702]
[1746460179269,4.49117421,143.49,143.47,6.9702]
[1746460179470,6.9692,143.5,143.47,6.9702]
[1746460179671,4.49162202,143.49,143.47,6.9702]
[1746460179969,6.9696,143.49,143.46,6.9707]
[1746460180270,4.47245123,143.48,143.46,6.9707]
[1746460180471,6.9696,143.49,143.46,6.9707]
[1746460180767,6.97,143.48,143.46,6.9707]
[1746460181069,6.9716,143.45,143.39,28.42]
[1746460181270,28.3982,143.54,143.39,34.7193]
[1746460181462,4.47493492,143.53,143.39,34.7193]
[1746460181669,4.47493492,143.52,143.39,34.7193]
[1746460181868,4.47493492,143.51,143.39,34.7193]
[1746460182061,6.9699,143.48,143.45,6.9711]
[1746460182267,28.3982,143.54,143.45,6.9711]
[1746460182471,4.47871335,143.53,143.44,27.42]
[1746460182766,6.9692,143.5,143.46,6.9707]
[1746460182972,4.47871335,143.49,143.44,27.42]
[1746460183266,4.47871335,143.49,143.47,6.9701]
[1746460183476,11.44831335,143.49,143.44,27.42]
[1746460183675,4.47871335,143.48,143.44,27.42]
[1746460184272,4.48095853,143.47,143.46,6.9706]
[1746460185778,4.48095853,143.47,143.45,6.9711]
[1746460185978,6.97,143.48,143.45,6.9711]
[1746460186275,4.49674526,143.47,143.45,6.9711]
[1746460186471,6.97,143.48,143.44,28.42]
[1746460186672,4.49787686,143.47,143.44,28.42]
[1746460186972,6.97,143.48,143.44,28.42]
[1746460187172,4.4978694,143.47,143.45,6.9709]
[1746460187375,6.97,143.48,143.45,6.9709]
[1746460187577,4.49821227,143.47,143.45,6.9709]
[1746460187777,6.97,143.48,143.45,6.9709]
[1746460187971,4.49609701,143.47,143.45,6.9709]
[1746460188173,6.97,143.48,143.46,6.9708]
[1746460188369,4.49609586,143.47,143.46,6.9708]
[1746460188675,4.49609586,143.47,143.45,6.9712]
[1746460188880,40.2613654,143.54,143.45,6.9712]
[1746460189080,4.49954243,143.53,143.45,6.9712]
[1746460189281,11.8631654,143.51,143.44,1.0]
[1746460189481,31.69954243,143.5,143.44,1.0]
[1746460189780,6.9714,143.45,143.44,1.0]
[1746460189982,11.47415649,143.45,143.44,1.0]
[1746460193074,6.9737,143.41,143.39,28.2]
[1746460193274,39.07426956,143.46,143.39,28.2]
[1746460193482,4.50080751,143.45,143.39,35.1742]
[1746460193783,6.9738,143.4,143.39,1.0]
[1746460194380,6.9735,143.41,143.39,1.0]
[1746460194780,39.07426956,143.46,143.39,1.0]
[1746460195085,6.9738,143.4,143.39,1.0]
[1746460197485,6.9735,143.41,143.39,1.0]
[1746460198385,6.9735,143.41,143.39,7.9743]
[1746460199087,6.9738,143.4,143.39,1.0]
[1746460199388,27.2,143.46,143.39,1.0]
[1746460199593,4.49891344,143.45,143.39,1.0]
[1746460199784,6.9736,143.41,143.39,1.0]
[1746460200184,27.2,143.46,143.39,1.0]
[1746460200391,6.9738,143.4,143.39,1.0]
[1746460200593,11.46884002,143.4,143.39,1.0]
[1746460201193,27.2,143.46,143.39,1.0]
[1746460201394,4.49004992,143.45,143.39,1.0]
[1746460201595,6.9727,143.43,143.39,1.0]
[1746460201893,4.48992215,143.42,143.39,1.0]
[1746460202089,27.2,143.46,143.39,7.9741]
[1746460202291,4.49067022,143.45,143.39,7.9741]
[1746460202493,4.49067022,143.44,143.4,6.9738]
[1746460202687,4.49067022,143.44,143.39,1.0]
[1746460202688,4.49067022,143.43,143.39,1.0]
[1746460202896,6.9721,143.44,143.4,27.22]
[1746460203295,6.9716,143.45,143.4,27.22]
[1746460203594,31.3537,143.49,143.4,27.22]
[1746460203798,6.9709,143.46,143.4,33.2403]
[1746460204098,13.9377,143.51,143.4,33.2403]
[1746460204297,24.39097178,143.52,143.47,6.9701]
[1746460204694,51.61097178,143.53,143.45,27.22]
[1746460204895,6.9704,143.48,143.45,27.22]
[1746460205394,6.9693,143.5,143.45,27.22]
[1746460205900,6.9692,143.5,143.47,6.9701]
[1746460206093,51.61097178,143.53,143.47,6.9701]
[1746460206497,6.9695,143.49,143.47,6.9701]
[1746460206800,6.9695,143.49,143.46,6.9706]
[1746460206998,6.9702,143.48,143.45,27.22]
[1746460207294,6.9702,143.48,143.45,34.1912]
[1746460207795,6.9704,143.47,143.45,27.22]
[1746460207992,27.22,143.53,143.42,27.22]
[1746460208197,18.137,143.52,143.4,33.2403]
[1746460208394,18.137,143.52,143.41,6.9729]
[1746460208694,4.49443847,143.51,143.41,6.9729]
[1746460208901,18.137,143.52,143.4,33.2403]
[1746460209200,6.9716,143.45,143.42,6.9726]
[1746460210202,27.22,143.49,143.4,33.2403]
[1746460210502,4.495197,143.48,143.4,33.2403]
[1746460210800,27.22,143.49,143.42,6.9728]
[1746460211402,27.22,143.49,143.43,6.9723]
[1746460211600,6.9712,143.46,143.43,6.9723]
[1746460211904,27.22,143.49,143.43,6.9723]
[1746460212303,27.22,143.49,143.42,6.9726]
[1746460212503,4.4964074,143.48,143.42,6.9726]
[1746460212800,27.22,143.49,143.42,6.9726]
[1746460213001,6.9716,143.45,143.42,6.9726]
[1746460213193,27.22,143.49,143.4,33.2403]
[1746460213396,31.4206,143.52,143.4,33.2403]
[1746460213600,6.9703,143.48,143.45,6.9711]
[1746460214205,6.9706,143.47,143.44,6.9717]
[1746460214394,31.4206,143.52,143.44,6.9717]
[1746460215105,31.4206,143.52,143.45,6.9713]
[1746460215304,6.9702,143.48,143.45,6.9713]
[1746460215507,0.9799,143.55,143.46,6.9705]
[1746460215705,27.22,143.54,143.46,6.9705]
[1746460215904,6.9697,143.49,143.46,6.9705]
[1746460216104,27.22,143.54,143.47,6.9703]
[1746460216306,27.22,143.54,143.45,27.22]
[1746460216606,6.9691,143.5,143.47,6.97]
[1746460216802,27.22,143.54,143.47,6.97]
[1746460217106,27.22,143.54,143.42,27.22]
[1746460217503,6.971,143.46,143.42,27.22]
[1746460217903,27.22,143.54,143.42,27.22]
[1746460218202,6.9706,143.47,143.44,6.9714]
[1746460218404,6.9706,143.47,143.42,27.22]
[1746460218907,27.22,143.54,143.42,27.22]
[1746460219404,6.9687,143.51,143.42,27.22]
[1746460219608,4.4784825,143.5,143.47,6.9703]
[1746460219804,27.22,143.54,143.47,6.9703]
[1746460220002,4.47689011,143.53,143.47,6.9703]
[1746460220206,6.9694,143.49,143.47,6.9703]
[1746460220507,27.22,143.54,143.47,6.9703]
[1746460220698,4.46917958,143.53,143.47,6.9703]
[1746460220904,4.46917958,143.52,143.47,6.9703]
[1746460221103,27.22,143.54,143.47,6.9703]
[1746460221104,4.46932689,143.51,143.47,6.9703]
[1746460221307,6.9697,143.49,143.46,33.9706]
[1746460221812,6.9697,143.49,143.47,6.9702]
[1746460222207,6.9691,143.5,143.46,27.0]
[1746460222405,6.9691,143.5,143.47,6.97]
[1746460222908,6.9695,143.49,143.46,33.9706]
[1746460223308,6.9695,143.49,143.46,27.0]
[1746460224309,6.9695,143.49,143.47,6.9701]
[1746460225809,6.9694,143.5,143.47,6.9701]
[1746460226009,27.22,143.54,143.47,6.9701]
[1746460226709,6.9692,143.5,143.47,6.9701]
[1746460227114,27.22,143.54,143.47,6.9701]
[1746460227410,6.9694,143.5,143.47,6.9701]
[1746460227812,6.9694,143.5,143.48,6.9698]
[1746460228014,6.9694,143.5,143.46,27.0]
[1746460228313,6.9683,143.52,143.46,27.0]
[1746460228514,26.98,143.56,143.47,1.9753]
[1746460228712,6.9682,143.52,143.47,5.9352]
[1746460229811,6.9677,143.53,143.5,6.9686]
[1746460230113,6.9677,143.53,143.47,5.9352]
[1746460230413,6.9677,143.53,143.5,6.9687]
[1746460231116,6.9677,143.53,143.51,6.9684]
[1746460231917,6.967,143.54,143.52,6.968]
[1746460232119,26.98,143.56,143.52,6.968]
[1746460232615,6.967,143.54,143.52,6.968]
[1746460232916,6.9677,143.53,143.51,6.9682]
[1746460233416,6.9674,143.54,143.51,6.9682]
[1746460233614,26.98,143.56,143.51,6.9682]
[1746460234516,6.9677,143.53,143.51,6.9682]
[1746460236024,6.9672,143.54,143.51,6.9682]
[1746460236318,6.9672,143.54,143.52,6.9679]
[1746460236518,6.9672,143.54,143.5,26.98]
[1746460236721,6.9672,143.54,143.51,6.9681]
[1746460236916,26.98,143.56,143.51,6.9681]
[1746460237221,26.98,143.56,143.52,6.9679]
[1746460237521,6.9666,143.55,143.5,26.98]
[1746460237917,4.0323,143.58,143.52,6.9676]
[1746460238115,6.9669,143.55,143.52,6.9676]
[1746460238321,6.9669,143.55,143.53,6.9674]
[1746460238620,6.9669,143.55,143.5,26.98]
[1746460238822,6.9671,143.54,143.52,6.9677]
[1746460239321,6.9671,143.54,143.5,26.98]
[1746460239521,6.9676,143.53,143.51,6.9682]
[1746460239724,6.9676,143.53,143.5,26.98]
[1746460240023,6.9676,143.53,143.51,6.9682]
[1746460240322,6.9672,143.54,143.5,26.98]
[1746460240524,26.98,143.61,143.55,6.9664]
[1746460240823,6.9653,143.58,143.55,6.9664]
[1746460241416,26.98,143.61,143.54,33.9468]
[1746460241620,4.45993562,143.6,143.54,26.98]
[1746460241820,26.98,143.61,143.54,26.98]
[1746460242120,6.9652,143.58,143.56,6.9658]
[1746460243117,26.98,143.61,143.55,6.9663]